[Event "Titled Tuesday Blitz July 27 2021"]
[White "Rustemov, Alexander"]
[Black "Lee, Qing Aun"]
[WhiteFideId "4119002"]
[BlackFideId "5804167"]
[WhiteElo "2806"]
[BlackElo "2023"]
[Result "0-1"]
[Round "09"]
[TimeControl "180+1"]
[Date "2021.07.27"]
[WhiteClock "0:00:02"]
[BlackClock "0:00:05"]

1. d4 {[%clk 0:03:00]}  Nf6 {[%clk 0:02:59]} 2. c4 {[%clk 0:02:59]}  c5 {[%clk 0:02:59]} 3. d5 {[%clk 0:02:58]}  b5 {[%clk 0:02:58]} 4. Nf3 {[%clk 0:02:59]}  e6 {[%clk 0:02:58]} 5. Bg5 {[%clk 0:02:58]}  exd5 {[%clk 0:02:57]} 6. cxd5 {[%clk 0:02:57]}  h6 {[%clk 0:02:57]} 7. Bxf6 {[%clk 0:02:56]}  Qxf6 {[%clk 0:02:56]} 8. Qc2 {[%clk 0:02:56]}  Be7 {[%clk 0:02:50]} 9. e4 {[%clk 0:02:57]}  Qb6 {[%clk 0:02:49]} 10. a4 {[%clk 0:02:53]}  bxa4 {[%clk 0:02:49]} 11. Nbd2 {[%clk 0:02:28]}  Na6 {[%clk 0:02:30]} 12. Rxa4 {[%clk 0:02:19]}  Nb4 {[%clk 0:02:29]} 13. Qb1 {[%clk 0:02:01]}  d6 {[%clk 0:02:27]} 14. Be2 {[%clk 0:01:58]}  O-O {[%clk 0:02:22]} 15. O-O {[%clk 0:01:58]}  Bd7 {[%clk 0:02:21]} 16. Ra3 {[%clk 0:01:57]}  Bf6 {[%clk 0:02:19]} 17. Nc4 {[%clk 0:01:56]}  Qc7 {[%clk 0:02:19]} 18. h3 {[%clk 0:01:51]}  Rfe8 {[%clk 0:02:17]} 19. Re1 {[%clk 0:01:49]}  a5 {[%clk 0:02:12]} 20. Bd1 {[%clk 0:01:44]}  Bb5 {[%clk 0:02:01]} 21. Nfd2 {[%clk 0:01:43]}  Bd4 {[%clk 0:01:55]} 22. Ba4 {[%clk 0:01:41]}  Bxa4 {[%clk 0:01:46]} 23. Rxa4 {[%clk 0:01:42]}  Reb8 {[%clk 0:01:41]} 24. b3 {[%clk 0:01:36]}  Re8 {[%clk 0:01:36]} 25. Nf3 {[%clk 0:01:30]}  Bc3 {[%clk 0:01:34]} 26. Re3 {[%clk 0:01:28]}  Bf6 {[%clk 0:01:30]} 27. g3 {[%clk 0:01:24]}  g6 {[%clk 0:01:21]} 28. Kg2 {[%clk 0:01:24]}  Bg7 {[%clk 0:01:20]} 29. Qd1 {[%clk 0:01:16]}  Re7 {[%clk 0:01:17]} 30. Qe2 {[%clk 0:01:15]}  Bd4 {[%clk 0:00:58]} 31. Nxd4 {[%clk 0:01:07]}  cxd4 {[%clk 0:00:59]} 32. Rf3 {[%clk 0:01:04]}  Nxd5 {[%clk 0:00:59]} 33. Qd3 {[%clk 0:00:58]}  Nc3 {[%clk 0:00:57]} 34. Ra1 {[%clk 0:00:53]}  Rxe4 {[%clk 0:00:48]} 35. Rc1 {[%clk 0:00:43]}  d5 {[%clk 0:00:47]} 36. Nd2 {[%clk 0:00:37]}  Qb7 {[%clk 0:00:36]} 37. Kh2 {[%clk 0:00:33]}  Rae8 {[%clk 0:00:32]} 38. Rf6 {[%clk 0:00:23]}  Kg7 {[%clk 0:00:31]} 39. Rd6 {[%clk 0:00:21]}  Qb4 {[%clk 0:00:21]} 40. Rd7 {[%clk 0:00:17]}  Re2 {[%clk 0:00:20]} 41. Qf3 {[%clk 0:00:17]}  R8e7 {[%clk 0:00:19]} 42. Rxe7 {[%clk 0:00:16]}  Qxe7 {[%clk 0:00:20]} 43. Nf1 {[%clk 0:00:16]}  Ra2 {[%clk 0:00:19]} 44. Kg2 {[%clk 0:00:15]}  Ne4 {[%clk 0:00:19]} 45. Rd1 {[%clk 0:00:14]}  Rxf2+ {[%clk 0:00:18]} 46. Qxf2 {[%clk 0:00:13]}  Nxf2 {[%clk 0:00:19]} 47. Kxf2 {[%clk 0:00:14]}  Qb4 {[%clk 0:00:19]} 48. Rd3 {[%clk 0:00:14]}  a4 {[%clk 0:00:18]} 49. bxa4 {[%clk 0:00:13]}  Qxa4 {[%clk 0:00:18]} 50. Nd2 {[%clk 0:00:14]}  Kf6 {[%clk 0:00:17]} 51. Nf3 {[%clk 0:00:12]}  Qc2+ {[%clk 0:00:16]} 52. Rd2 {[%clk 0:00:13]}  Qc5 {[%clk 0:00:16]} 53. Rxd4 {[%clk 0:00:13]}  g5 {[%clk 0:00:15]} 54. g4 {[%clk 0:00:14]}  Kg6 {[%clk 0:00:14]} 55. Kg3 {[%clk 0:00:12]}  f6 {[%clk 0:00:14]} 56. Rd2 {[%clk 0:00:11]}  Qc7+ {[%clk 0:00:14]} 57. Kf2 {[%clk 0:00:11]}  Qc5+ {[%clk 0:00:13]} 58. Kg3 {[%clk 0:00:11]}  h5 {[%clk 0:00:13]} 59. Kg2 {[%clk 0:00:10]}  h4 {[%clk 0:00:11]} 60. Nd4 {[%clk 0:00:08]}  Qc3 {[%clk 0:00:10]} 61. Nf3 {[%clk 0:00:07]}  Qc4 {[%clk 0:00:09]} 62. Nd4 {[%clk 0:00:06]}  Qc3 {[%clk 0:00:07]} 63. Nf3 {[%clk 0:00:06]}  Qc6 {[%clk 0:00:07]} 64. Nd4 {[%clk 0:00:06]}  Qe8 {[%clk 0:00:06]} 65. Nf5 {[%clk 0:00:05]}  Qe4+ {[%clk 0:00:06]} 66. Kf2 {[%clk 0:00:05]}  Qf4+ {[%clk 0:00:06]} 67. Ke2 {[%clk 0:00:04]}  Qh2+ {[%clk 0:00:06]} 68. Kd1 {[%clk 0:00:03]}  Qxh3 {[%clk 0:00:05]} 69. Rd4 {[%clk 0:00:02]}  Qf3+ {[%clk 0:00:03]} 70. Kd2 {[%clk 0:00:02]}  h3 {[%clk 0:00:03]} 71. Ne7+ {[%clk 0:00:01]}  Kf7 {[%clk 0:00:02]} 72. Nxd5 {[%clk 0:00:02]}  h2 {[%clk 0:00:02]} 73. Rd3 {[%clk 0:00:02]}  h1=Q {[%clk 0:00:03]} 74. Ne3 {[%clk 0:00:01]}  Qf2+ {[%clk 0:00:03]} 75. Kc3 {[%clk 0:00:02]}  Qc1+ {[%clk 0:00:03]} 76. Kd4 {[%clk 0:00:03]}  Qcb2+ {[%clk 0:00:04]} 77. Kc4 {[%clk 0:00:02]}  Qf4+ {[%clk 0:00:05]} 78. Kd5 {[%clk 0:00:02]}  Qb5# {[%clk 0:00:05]} 0-1


[Site "https://www.chess.com"]

[Event "Titled Tuesday Blitz July 27 2021"]
[White "Sadhwani, Raunak"]
[Black "Quparadze, Giga"]
[WhiteFideId "35093487"]
[BlackFideId "13602250"]
[WhiteElo "2514"]
[BlackElo "2658"]
[Result "1-0"]
[Round "09"]
[TimeControl "180+1"]
[Date "2021.07.27"]
[WhiteClock "0:00:10"]
[BlackClock "0:00:30"]

1. b3 {[%clk 0:03:00]}  c5 {[%clk 0:02:59]} 2. Bb2 {[%clk 0:02:59]}  d6 {[%clk 0:02:59]} 3. e4 {[%clk 0:02:50]}  Nf6 {[%clk 0:02:57]} 4. Bb5+ {[%clk 0:02:50]}  Nbd7 {[%clk 0:02:57]} 5. Qe2 {[%clk 0:02:46]}  g6 {[%clk 0:02:55]} 6. f4 {[%clk 0:02:44]}  Bg7 {[%clk 0:02:47]} 7. Nf3 {[%clk 0:02:44]}  O-O {[%clk 0:02:45]} 8. Nc3 {[%clk 0:02:44]}  a6 {[%clk 0:02:44]} 9. Bxd7 {[%clk 0:02:44]}  Bxd7 {[%clk 0:02:44]} 10. O-O-O {[%clk 0:02:44]}  b5 {[%clk 0:02:40]} 11. e5 {[%clk 0:02:44]}  Nh5 {[%clk 0:02:39]} 12. Qe3 {[%clk 0:02:42]}  b4 {[%clk 0:02:22]} 13. Ne4 {[%clk 0:02:41]}  Qc7 {[%clk 0:02:17]} 14. h3 {[%clk 0:02:41]}  Bc6 {[%clk 0:02:07]} 15. Rhe1 {[%clk 0:02:33]}  Bxe4 {[%clk 0:02:05]} 16. Qxe4 {[%clk 0:02:34]}  Ng3 {[%clk 0:02:05]} 17. Qd3 {[%clk 0:02:19]}  dxe5 {[%clk 0:01:54]} 18. fxe5 {[%clk 0:02:06]}  Rad8 {[%clk 0:01:42]} 19. Qc4 {[%clk 0:02:07]}  Rc8 {[%clk 0:01:37]} 20. Kb1 {[%clk 0:02:01]}  a5 {[%clk 0:01:35]} 21. e6 {[%clk 0:01:35]}  f6 {[%clk 0:01:34]} 22. d4 {[%clk 0:01:23]}  Nf5 {[%clk 0:01:33]} 23. dxc5 {[%clk 0:01:09]}  Qxc5 {[%clk 0:01:34]} 24. Qxc5 {[%clk 0:01:10]}  Rxc5 {[%clk 0:01:34]} 25. Rd7 {[%clk 0:01:11]}  Re8 {[%clk 0:01:25]} 26. a4 {[%clk 0:00:59]}  h5 {[%clk 0:01:22]} 27. Red1 {[%clk 0:00:38]}  Bf8 {[%clk 0:01:21]} 28. R1d5 {[%clk 0:00:26]}  Rec8 {[%clk 0:01:15]} 29. g4 {[%clk 0:00:19]}  Ng7 {[%clk 0:01:13]} 30. Nd4 {[%clk 0:00:17]}  hxg4 {[%clk 0:01:07]} 31. hxg4 {[%clk 0:00:17]}  Rxd5 {[%clk 0:00:56]} 32. Rxd5 {[%clk 0:00:17]}  Ra8 {[%clk 0:00:56]} 33. Bc1 {[%clk 0:00:15]}  g5 {[%clk 0:00:55]} 34. Bd2 {[%clk 0:00:14]}  Ra6 {[%clk 0:00:54]} 35. c3 {[%clk 0:00:14]}  bxc3 {[%clk 0:00:54]} 36. Bxc3 {[%clk 0:00:15]}  Nxe6 {[%clk 0:00:55]} 37. Nxe6 {[%clk 0:00:14]}  Rxe6 {[%clk 0:00:55]} 38. Bxa5 {[%clk 0:00:13]}  Re4 {[%clk 0:00:55]} 39. Bc3 {[%clk 0:00:14]}  e6 {[%clk 0:00:53]} 40. Rd4 {[%clk 0:00:14]}  Re3 {[%clk 0:00:51]} 41. Kc2 {[%clk 0:00:14]}  f5 {[%clk 0:00:49]} 42. gxf5 {[%clk 0:00:14]}  exf5 {[%clk 0:00:49]} 43. Rd5 {[%clk 0:00:14]}  Rf3 {[%clk 0:00:43]} 44. a5 {[%clk 0:00:14]}  Rf2+ {[%clk 0:00:43]} 45. Bd2 {[%clk 0:00:11]}  Rf1 {[%clk 0:00:36]} 46. a6 {[%clk 0:00:11]}  Ra1 {[%clk 0:00:36]} 47. Ba5 {[%clk 0:00:11]}  Ba3 {[%clk 0:00:31]} 48. Rd8+ {[%clk 0:00:09]}  Kf7 {[%clk 0:00:31]} 49. a7 {[%clk 0:00:10]}  Rc1+ {[%clk 0:00:30]} 50. Kd2 {[%clk 0:00:10]} 1-0


[Site "https://www.chess.com"]

[Event "Titled Tuesday Blitz July 27 2021"]
[White "Shahade, Gregory"]
[Black "Pridorozhni, Aleksei"]
[WhiteFideId "2009064"]
[BlackFideId "4127870"]
[WhiteElo "2705"]
[BlackElo "2565"]
[Result "0-1"]
[Round "09"]
[TimeControl "180+1"]
[Date "2021.07.27"]
[WhiteClock "0:00:20"]
[BlackClock "0:01:19"]

1. e4 {[%clk 0:03:00]}  c5 {[%clk 0:02:59]} 2. Nf3 {[%clk 0:03:01]}  e6 {[%clk 0:03:00]} 3. d4 {[%clk 0:03:01]}  cxd4 {[%clk 0:03:00]} 4. Nxd4 {[%clk 0:03:02]}  Nf6 {[%clk 0:03:01]} 5. Nc3 {[%clk 0:03:02]}  Nc6 {[%clk 0:03:01]} 6. Nxc6 {[%clk 0:03:00]}  bxc6 {[%clk 0:03:02]} 7. e5 {[%clk 0:03:00]}  Nd5 {[%clk 0:03:02]} 8. Ne4 {[%clk 0:03:01]}  Qc7 {[%clk 0:03:03]} 9. f4 {[%clk 0:03:00]}  Rb8 {[%clk 0:03:03]} 10. Be2 {[%clk 0:02:35]}  Be7 {[%clk 0:03:00]} 11. O-O {[%clk 0:02:29]}  f5 {[%clk 0:02:57]} 12. exf6 {[%clk 0:02:25]}  Nxf6 {[%clk 0:02:57]} 13. Nxf6+ {[%clk 0:02:13]}  Bxf6 {[%clk 0:02:58]} 14. c3 {[%clk 0:02:13]}  O-O {[%clk 0:02:54]} 15. Kh1 {[%clk 0:02:11]}  d5 {[%clk 0:02:50]} 16. Bd3 {[%clk 0:02:10]}  g6 {[%clk 0:02:43]} 17. Qe2 {[%clk 0:02:08]}  Bd7 {[%clk 0:02:41]} 18. Be3 {[%clk 0:02:08]}  c5 {[%clk 0:02:32]} 19. Rae1 {[%clk 0:01:25]}  Rf7 {[%clk 0:02:23]} 20. Qf3 {[%clk 0:01:04]}  Rxb2 {[%clk 0:02:16]} 21. Qg3 {[%clk 0:01:04]}  c4 {[%clk 0:02:02]} 22. Bb1 {[%clk 0:00:52]}  Bxc3 {[%clk 0:01:53]} 23. Rc1 {[%clk 0:00:49]}  Bg7 {[%clk 0:01:52]} 24. h4 {[%clk 0:00:39]}  c3 {[%clk 0:01:43]} 25. Bc2 {[%clk 0:00:34]}  d4 {[%clk 0:01:36]} 26. Bg1 {[%clk 0:00:33]}  Bb5 {[%clk 0:01:31]} 27. Rf3 {[%clk 0:00:29]}  Bc6 {[%clk 0:01:24]} 28. Rd3 {[%clk 0:00:27]}  Qxf4 {[%clk 0:01:23]} 29. Qxf4 {[%clk 0:00:22]}  Rxf4 {[%clk 0:01:24]} 30. Bh2 {[%clk 0:00:20]}  Rxh4 {[%clk 0:01:22]} 31. Kg1 {[%clk 0:00:21]}  Rxc2 {[%clk 0:01:19]} 32. Rxc2 {[%clk 0:00:20]}  Be4 {[%clk 0:01:19]} 33. Rxd4 {[%clk 0:00:20]} 0-1


[Site "https://www.chess.com"]

[Event "Titled Tuesday Blitz July 27 2021"]
[White "Shevchenko, Kirill"]
[Black "Gabrielian, Artur"]
[WhiteFideId "14129574"]
[BlackFideId "4131002"]
[WhiteElo "2569"]
[BlackElo "2523"]
[Result "0-1"]
[Round "09"]
[TimeControl "180+1"]
[Date "2021.07.27"]
[WhiteClock "0:00:15"]
[BlackClock "0:00:16"]

1. Nf3 {[%clk 0:03:00]}  Nf6 {[%clk 0:02:58]} 2. g3 {[%clk 0:03:00]}  g6 {[%clk 0:02:58]} 3. Bg2 {[%clk 0:03:00]}  Bg7 {[%clk 0:02:59]} 4. c4 {[%clk 0:03:00]}  O-O {[%clk 0:02:59]} 5. Nc3 {[%clk 0:03:00]}  d6 {[%clk 0:03:00]} 6. O-O {[%clk 0:03:00]}  e5 {[%clk 0:03:00]} 7. d3 {[%clk 0:02:59]}  Nc6 {[%clk 0:02:59]} 8. Rb1 {[%clk 0:02:59]}  a5 {[%clk 0:02:57]} 9. a3 {[%clk 0:02:59]}  Nd4 {[%clk 0:02:53]} 10. Nxd4 {[%clk 0:02:55]}  exd4 {[%clk 0:02:53]} 11. Nb5 {[%clk 0:02:54]}  Ne8 {[%clk 0:02:31]} 12. e3 {[%clk 0:02:45]}  dxe3 {[%clk 0:02:29]} 13. Bxe3 {[%clk 0:02:46]}  c6 {[%clk 0:02:26]} 14. Nd4 {[%clk 0:02:45]}  Nf6 {[%clk 0:02:25]} 15. h3 {[%clk 0:02:44]}  Re8 {[%clk 0:02:23]} 16. b4 {[%clk 0:02:43]}  axb4 {[%clk 0:02:23]} 17. axb4 {[%clk 0:02:44]}  Nh5 {[%clk 0:02:19]} 18. Re1 {[%clk 0:02:35]}  Nxg3 {[%clk 0:02:15]} 19. b5 {[%clk 0:01:57]}  c5 {[%clk 0:02:04]} 20. Nc6 {[%clk 0:01:57]}  bxc6 {[%clk 0:02:03]} 21. bxc6 {[%clk 0:01:58]}  Ra7 {[%clk 0:01:33]} 22. Rb8 {[%clk 0:01:02]}  Qc7 {[%clk 0:01:12]} 23. Bh6 {[%clk 0:01:00]}  Rxe1+ {[%clk 0:01:06]} 24. Qxe1 {[%clk 0:01:00]}  Ra1 {[%clk 0:01:05]} 25. Qxa1 {[%clk 0:00:32]}  Bxa1 {[%clk 0:01:04]} 26. Ra8 {[%clk 0:00:33]}  Nf5 {[%clk 0:00:55]} 27. Bd2 {[%clk 0:00:33]}  Kg7 {[%clk 0:00:31]} 28. Be4 {[%clk 0:00:30]}  Bd4 {[%clk 0:00:25]} 29. Ba5 {[%clk 0:00:28]}  Qe7 {[%clk 0:00:24]} 30. Rxc8 {[%clk 0:00:28]}  Qh4 {[%clk 0:00:24]} 31. Be1 {[%clk 0:00:28]}  Qg3+ {[%clk 0:00:17]} 32. Kf1 {[%clk 0:00:27]}  Qxh3+ {[%clk 0:00:17]} 33. Ke2 {[%clk 0:00:23]}  Ng3+ {[%clk 0:00:17]} 34. fxg3 {[%clk 0:00:24]}  Qxc8 {[%clk 0:00:17]} 35. Ba5 {[%clk 0:00:24]}  Bf6 {[%clk 0:00:16]} 36. c7 {[%clk 0:00:24]}  d5 {[%clk 0:00:16]} 37. cxd5 {[%clk 0:00:17]}  Be5 {[%clk 0:00:16]} 38. Bc3 {[%clk 0:00:17]}  Bxc3 {[%clk 0:00:15]} 39. d6 {[%clk 0:00:17]}  Be5 {[%clk 0:00:16]} 40. Bb7 {[%clk 0:00:15]}  Qxb7 {[%clk 0:00:15]} 41. d7 {[%clk 0:00:15]}  Qxc7 {[%clk 0:00:16]} 0-1


[Site "https://www.chess.com"]

[Event "Titled Tuesday Blitz July 27 2021"]
[White "Tsaruk, Maksim"]
[Black "Makhnev, Denis"]
[WhiteFideId "13511173"]
[BlackFideId "13707647"]
[WhiteElo "2184"]
[BlackElo "2537"]
[Result "1-0"]
[Round "09"]
[TimeControl "180+1"]
[Date "2021.07.27"]
[WhiteClock "0:00:13"]
[BlackClock "0:00:45"]

1. d4 {[%clk 0:02:45]}  Nf6 {[%clk 0:02:59]} 2. Nf3 {[%clk 0:02:46]}  e6 {[%clk 0:02:59]} 3. Bf4 {[%clk 0:02:46]}  c5 {[%clk 0:03:00]} 4. e3 {[%clk 0:02:46]}  d5 {[%clk 0:03:00]} 5. c3 {[%clk 0:02:46]}  Bd6 {[%clk 0:03:00]} 6. Bg3 {[%clk 0:02:47]}  Qc7 {[%clk 0:03:01]} 7. Nbd2 {[%clk 0:02:47]}  Nbd7 {[%clk 0:03:01]} 8. Bd3 {[%clk 0:02:46]}  O-O {[%clk 0:03:01]} 9. O-O {[%clk 0:02:46]}  Bxg3 {[%clk 0:03:02]} 10. hxg3 {[%clk 0:02:46]}  e5 {[%clk 0:03:03]} 11. dxe5 {[%clk 0:02:46]}  Nxe5 {[%clk 0:03:04]} 12. Nxe5 {[%clk 0:02:43]}  Qxe5 {[%clk 0:03:05]} 13. Nf3 {[%clk 0:02:34]}  Qe7 {[%clk 0:03:04]} 14. Qa4 {[%clk 0:02:27]}  Bd7 {[%clk 0:03:04]} 15. Bb5 {[%clk 0:02:27]}  Bg4 {[%clk 0:03:02]} 16. Rad1 {[%clk 0:02:25]}  Rfd8 {[%clk 0:02:59]} 17. Be2 {[%clk 0:02:12]}  h6 {[%clk 0:02:58]} 18. Rfe1 {[%clk 0:02:05]}  b6 {[%clk 0:02:53]} 19. Nd2 {[%clk 0:01:51]}  Bxe2 {[%clk 0:02:45]} 20. Rxe2 {[%clk 0:01:51]}  d4 {[%clk 0:02:46]} 21. cxd4 {[%clk 0:01:42]}  cxd4 {[%clk 0:02:46]} 22. Nf3 {[%clk 0:01:23]}  dxe3 {[%clk 0:02:43]} 23. Rxe3 {[%clk 0:01:24]}  Rxd1+ {[%clk 0:02:44]} 24. Qxd1 {[%clk 0:01:25]}  Rd8 {[%clk 0:02:42]} 25. Rxe7 {[%clk 0:01:21]}  Rxd1+ {[%clk 0:02:42]} 26. Re1 {[%clk 0:01:22]}  Rd3 {[%clk 0:02:42]} 27. Kf1 {[%clk 0:01:20]}  Kf8 {[%clk 0:02:40]} 28. Ke2 {[%clk 0:01:20]}  Rd5 {[%clk 0:02:38]} 29. Rd1 {[%clk 0:01:20]}  Rb5 {[%clk 0:02:38]} 30. b3 {[%clk 0:01:19]}  Ne4 {[%clk 0:02:38]} 31. Rd7 {[%clk 0:01:18]}  Ra5 {[%clk 0:02:28]} 32. Ke3 {[%clk 0:01:11]}  Nf6 {[%clk 0:02:24]} 33. Rd2 {[%clk 0:01:08]}  Ng4+ {[%clk 0:02:24]} 34. Kf4 {[%clk 0:01:06]}  h5 {[%clk 0:02:20]} 35. Nd4 {[%clk 0:01:03]}  Rd5 {[%clk 0:02:06]} 36. f3 {[%clk 0:01:01]}  Nf6 {[%clk 0:02:04]} 37. Ke3 {[%clk 0:01:00]}  a5 {[%clk 0:02:04]} 38. Nc6 {[%clk 0:00:56]}  Rc5 {[%clk 0:02:04]} 39. Rd8+ {[%clk 0:00:45]}  Ne8 {[%clk 0:02:04]} 40. Nd4 {[%clk 0:00:46]}  Ke7 {[%clk 0:01:47]} 41. Rb8 {[%clk 0:00:46]}  Nc7 {[%clk 0:01:42]} 42. Ke4 {[%clk 0:00:34]}  Nd5 {[%clk 0:01:39]} 43. Nf5+ {[%clk 0:00:24]}  Kf6 {[%clk 0:01:40]} 44. Ne3 {[%clk 0:00:23]}  Nc3+ {[%clk 0:01:35]} 45. Kd4 {[%clk 0:00:23]}  Rc6 {[%clk 0:01:31]} 46. Nd5+ {[%clk 0:00:23]}  Nxd5 {[%clk 0:01:31]} 47. Kxd5 {[%clk 0:00:24]}  Re6 {[%clk 0:01:32]} 48. Rb7 {[%clk 0:00:23]}  g5 {[%clk 0:01:28]} 49. a4 {[%clk 0:00:22]}  Kg6 {[%clk 0:01:25]} 50. Kc4 {[%clk 0:00:22]}  f6 {[%clk 0:01:21]} 51. Kb5 {[%clk 0:00:15]}  Re2 {[%clk 0:01:21]} 52. Rxb6 {[%clk 0:00:15]}  Rxg2 {[%clk 0:01:21]} 53. g4 {[%clk 0:00:12]}  h4 {[%clk 0:01:21]} 54. Rb8 {[%clk 0:00:11]}  Rg3 {[%clk 0:01:15]} 55. Kxa5 {[%clk 0:00:10]}  Rxf3 {[%clk 0:01:15]} 56. b4 {[%clk 0:00:08]}  f5 {[%clk 0:01:11]} 57. gxf5+ {[%clk 0:00:08]}  Rxf5+ {[%clk 0:01:11]} 58. b5 {[%clk 0:00:09]}  g4 {[%clk 0:01:11]} 59. Rg8+ {[%clk 0:00:08]}  Kh5 {[%clk 0:01:11]} 60. Rh8+ {[%clk 0:00:09]}  Kg5 {[%clk 0:01:11]} 61. Ka6 {[%clk 0:00:07]}  Rf6+ {[%clk 0:01:04]} 62. b6 {[%clk 0:00:07]}  Rg6 {[%clk 0:01:04]} 63. Kb5 {[%clk 0:00:06]}  g3 {[%clk 0:01:02]} 64. b7 {[%clk 0:00:05]}  g2 {[%clk 0:01:01]} 65. b8=Q {[%clk 0:00:06]}  g1=Q {[%clk 0:01:02]} 66. Qe5+ {[%clk 0:00:06]}  Kg4 {[%clk 0:01:00]} 67. Qe4+ {[%clk 0:00:07]}  Kg5 {[%clk 0:00:59]} 68. Qxg6+ {[%clk 0:00:07]}  Kxg6 {[%clk 0:00:39]} 69. Rg8+ {[%clk 0:00:08]}  Kf5 {[%clk 0:00:40]} 70. Rxg1 {[%clk 0:00:08]}  h3 {[%clk 0:00:40]} 71. a5 {[%clk 0:00:09]}  h2 {[%clk 0:00:41]} 72. Rh1 {[%clk 0:00:09]}  Kg4 {[%clk 0:00:42]} 73. Rxh2 {[%clk 0:00:10]}  Kg3 {[%clk 0:00:43]} 74. Ra2 {[%clk 0:00:11]}  Kf3 {[%clk 0:00:44]} 75. a6 {[%clk 0:00:12]}  Ke3 {[%clk 0:00:45]} 76. a7 {[%clk 0:00:13]} 1-0


[Site "https://www.chess.com"]

[Event "Titled Tuesday Blitz July 27 2021"]
[White "Wiewiora, Eneasz"]
[Black "Moskalenko, Alexander"]
[WhiteFideId "1140396"]
[BlackFideId "4155351"]
[WhiteElo "2312"]
[BlackElo "2495"]
[Result "1/2-1/2"]
[Round "09"]
[TimeControl "180+1"]
[Date "2021.07.27"]
[WhiteClock "0:01:18"]
[BlackClock "0:02:16"]

1. e4 {[%clk 0:03:00]}  c5 {[%clk 0:03:00]} 2. c3 {[%clk 0:03:01]}  d6 {[%clk 0:02:52]} 3. d4 {[%clk 0:03:00]}  Nf6 {[%clk 0:02:47]} 4. Bd3 {[%clk 0:02:58]}  Nc6 {[%clk 0:02:46]} 5. Nf3 {[%clk 0:02:58]}  g6 {[%clk 0:02:46]} 6. d5 {[%clk 0:02:55]}  Ne5 {[%clk 0:02:44]} 7. Nxe5 {[%clk 0:02:55]}  dxe5 {[%clk 0:02:44]} 8. O-O {[%clk 0:02:55]}  Bg7 {[%clk 0:02:45]} 9. c4 {[%clk 0:02:52]}  O-O {[%clk 0:02:45]} 10. Nc3 {[%clk 0:02:53]}  Ne8 {[%clk 0:02:45]} 11. f4 {[%clk 0:02:50]}  exf4 {[%clk 0:02:41]} 12. Bxf4 {[%clk 0:02:51]}  e5 {[%clk 0:02:42]} 13. Be3 {[%clk 0:02:41]}  b6 {[%clk 0:02:39]} 14. a3 {[%clk 0:02:38]}  a5 {[%clk 0:02:34]} 15. Qd2 {[%clk 0:02:33]}  Nd6 {[%clk 0:02:32]} 16. Rab1 {[%clk 0:02:26]}  Bd7 {[%clk 0:02:31]} 17. b4 {[%clk 0:02:23]}  axb4 {[%clk 0:02:32]} 18. axb4 {[%clk 0:02:24]}  Qc7 {[%clk 0:02:32]} 19. bxc5 {[%clk 0:02:13]}  bxc5 {[%clk 0:02:33]} 20. Nb5 {[%clk 0:02:14]}  Bxb5 {[%clk 0:02:32]} 21. cxb5 {[%clk 0:02:15]}  c4 {[%clk 0:02:31]} 22. b6 {[%clk 0:02:10]}  Qb7 {[%clk 0:02:31]} 23. Bc5 {[%clk 0:01:49]}  Rfd8 {[%clk 0:02:20]} 24. Bxd6 {[%clk 0:01:47]}  Rxd6 {[%clk 0:02:21]} 25. Bxc4 {[%clk 0:01:46]}  Rxb6 {[%clk 0:02:21]} 26. Rxb6 {[%clk 0:01:17]}  Qxb6+ {[%clk 0:02:22]} 27. Qf2 {[%clk 0:01:17]}  Qxf2+ {[%clk 0:02:16]} 28. Rxf2 {[%clk 0:01:18]} 1/2-1/2


[Site "https://www.chess.com"]

[Event "Titled Tuesday Blitz July 27 2021"]
[White "Yilmaz, Mustafa"]
[Black "Molina, Roberto Junio Brito"]
[WhiteFideId "6302718"]
[BlackFideId "2109450"]
[WhiteElo "2518"]
[BlackElo "2402"]
[Result "1-0"]
[Round "09"]
[TimeControl "180+1"]
[Date "2021.07.27"]
[WhiteClock "0:02:28"]
[BlackClock "0:01:58"]

1. d4 {[%clk 0:03:00]}  d5 {[%clk 0:02:59]} 2. c4 {[%clk 0:02:58]}  c6 {[%clk 0:02:58]} 3. cxd5 {[%clk 0:02:58]}  cxd5 {[%clk 0:02:58]} 4. Nc3 {[%clk 0:02:58]}  Nf6 {[%clk 0:02:58]} 5. Bf4 {[%clk 0:02:59]}  Qb6 {[%clk 0:02:57]} 6. e3 {[%clk 0:02:54]}  Qxb2 {[%clk 0:02:55]} 7. Rc1 {[%clk 0:02:41]}  Nc6 {[%clk 0:02:55]} 8. Bd3 {[%clk 0:02:35]}  a6 {[%clk 0:02:18]} 9. Nge2 {[%clk 0:02:32]}  e6 {[%clk 0:02:17]} 10. O-O {[%clk 0:02:31]}  Be7 {[%clk 0:02:14]} 11. Na4 {[%clk 0:02:28]}  Qa3 {[%clk 0:01:58]} 12. Nb6 {[%clk 0:02:28]} 1-0


[Site "https://www.chess.com"]

[Event "Titled Tuesday Blitz July 27 2021"]
[White "Zubov, Alexander"]
[Black "Lazavik, Denis"]
[WhiteFideId "14109409"]
[BlackFideId "13515110"]
[WhiteElo "2740"]
[BlackElo "2436"]
[Result "1-0"]
[Round "09"]
[TimeControl "180+1"]
[Date "2021.07.27"]
[WhiteClock "0:00:25"]
[BlackClock "0:00:01"]

1. d4 {[%clk 0:03:00]}  Nf6 {[%clk 0:02:59]} 2. Nf3 {[%clk 0:03:00]}  d5 {[%clk 0:02:59]} 3. c4 {[%clk 0:03:00]}  e6 {[%clk 0:02:59]} 4. Nc3 {[%clk 0:03:00]}  Be7 {[%clk 0:03:00]} 5. Bg5 {[%clk 0:02:59]}  O-O {[%clk 0:03:01]} 6. e3 {[%clk 0:03:00]}  Nbd7 {[%clk 0:03:01]} 7. Rc1 {[%clk 0:03:00]}  h6 {[%clk 0:03:02]} 8. Bh4 {[%clk 0:02:59]}  c5 {[%clk 0:03:02]} 9. dxc5 {[%clk 0:03:00]}  Nxc5 {[%clk 0:02:54]} 10. cxd5 {[%clk 0:02:59]}  g5 {[%clk 0:02:54]} 11. Bg3 {[%clk 0:02:54]}  Nxd5 {[%clk 0:02:54]} 12. Nxd5 {[%clk 0:02:46]}  Qxd5 {[%clk 0:02:55]} 13. Qxd5 {[%clk 0:02:39]}  exd5 {[%clk 0:02:56]} 14. Be5 {[%clk 0:02:34]}  Bd7 {[%clk 0:02:44]} 15. Be2 {[%clk 0:02:31]}  Rac8 {[%clk 0:02:42]} 16. O-O {[%clk 0:02:30]}  Rfd8 {[%clk 0:02:38]} 17. Bd4 {[%clk 0:02:25]}  Ne6 {[%clk 0:02:26]} 18. Bxa7 {[%clk 0:02:24]}  Rxc1 {[%clk 0:02:25]} 19. Rxc1 {[%clk 0:02:24]}  Ra8 {[%clk 0:02:25]} 20. Bd4 {[%clk 0:02:21]}  Rxa2 {[%clk 0:02:15]} 21. Bc3 {[%clk 0:02:20]}  Bc6 {[%clk 0:02:10]} 22. Nd4 {[%clk 0:02:05]}  Nxd4 {[%clk 0:01:12]} 23. Bxd4 {[%clk 0:02:05]}  f6 {[%clk 0:01:09]} 24. Bh5 {[%clk 0:01:57]}  Kg7 {[%clk 0:01:07]} 25. g3 {[%clk 0:01:48]}  Bd6 {[%clk 0:00:44]} 26. f4 {[%clk 0:01:48]}  Ra8 {[%clk 0:00:41]} 27. Rf1 {[%clk 0:01:44]}  Be7 {[%clk 0:00:41]} 28. h4 {[%clk 0:01:43]}  gxf4 {[%clk 0:00:39]} 29. gxf4 {[%clk 0:01:13]}  Be8 {[%clk 0:00:38]} 30. Bf3 {[%clk 0:01:12]}  Bc6 {[%clk 0:00:38]} 31. Kf2 {[%clk 0:01:11]}  Kf7 {[%clk 0:00:37]} 32. Rg1 {[%clk 0:01:10]}  Rg8 {[%clk 0:00:35]} 33. Bh5+ {[%clk 0:01:10]}  Kf8 {[%clk 0:00:36]} 34. Bg6 {[%clk 0:01:10]}  h5 {[%clk 0:00:24]} 35. Bxh5 {[%clk 0:01:03]}  Rh8 {[%clk 0:00:22]} 36. Bg4 {[%clk 0:00:59]}  Rxh4 {[%clk 0:00:22]} 37. Be6 {[%clk 0:00:59]}  Rh8 {[%clk 0:00:21]} 38. f5 {[%clk 0:00:58]}  Ke8 {[%clk 0:00:12]} 39. Rg6 {[%clk 0:00:54]}  Rf8 {[%clk 0:00:11]} 40. Rg7 {[%clk 0:00:48]}  Bd7 {[%clk 0:00:09]} 41. Kf3 {[%clk 0:00:48]}  Bxe6 {[%clk 0:00:08]} 42. fxe6 {[%clk 0:00:48]}  Rh8 {[%clk 0:00:07]} 43. Rg1 {[%clk 0:00:34]}  Rh3+ {[%clk 0:00:04]} 44. Kg4 {[%clk 0:00:33]}  Rh8 {[%clk 0:00:04]} 45. Ra1 {[%clk 0:00:33]}  Rg8+ {[%clk 0:00:05]} 46. Kf4 {[%clk 0:00:31]}  Bd8 {[%clk 0:00:02]} 47. Bc5 {[%clk 0:00:27]}  Rg2 {[%clk 0:00:01]} 48. Ra8 {[%clk 0:00:25]}  Rf2+ {[%clk 0:00:01]} 49. Kg3 {[%clk 0:00:25]} 1-0


[Site "https://www.chess.com"]